[Event "FIDE World Junior U20-ch Girls 2025"]
[Site "Petrovac"]
[Date "2025.02.28"]
[Round "4.18"]
[White "Khuslen, Erdenebayar"]
[Black "Shokirjonova, Barchinoy"]
[Result "1/2-1/2"]
[Annotator "ChessBase"]
[ECO "D10"]
[WhiteElo "2201"]
[BlackElo "2061"]
[PlyCount "83"]
[EventDate "2025.02.23"]
[EventType "swiss"]
[EventCountry "MNE"]
[SourceTitle "playchess.com"]
[Source "ChessBase"]
[SourceQuality "1"]
[TimeControl "40/5400+30:1800+30"]

1. d4 {[%emt 0:00:04]} d5 {[%emt 0:00:09]} 2. c4 {[%emt 0:00:24]} c6 {[%emt 0:00:08]} 3. Nc3 {[%emt 0:00:38]} dxc4 {[%emt 0:00:40]} 4. a4 {[%emt 0:05:32]} e5 {[%emt 0:07:10]} 5. dxe5 {[%emt 0:02:38]} Qxd1+ {[%emt 0:01:13]} 6. Kxd1 {[%emt 0:00:18]} Be6 {[%emt 0:07:14]} 7. e4 {[%emt 0:07:58]} Na6 {[%emt 0:04:11]} 8. f4 {[%emt 0:12:10]} Rd8+ {[%emt 0:07:11]} 9. Ke2 {[%emt 0:03:01]} f5 {[%emt 0:22:56]} 10. Nf3 {[%emt 0:17:11]} fxe4 {[%emt 0:13:40]} 11. Ng5 {[%emt 0:02:52]} Bf5 {[%emt 0:09:39]} 12. Kf2 {[%emt 0:06:55]} h6 {[%emt 0:10:17]} 13. Ngxe4 {[%emt 0:00:39]} Nc5 {[%emt 0:00:07]} 14. Nxc5 {[%emt 0:07:17]} Bxc5+ {[%emt 0:00:04]} 15. Kf3 {[%emt 0:00:15]} Bd3 {[%emt 0:01:09]} 16. Be2 {[%emt 0:04:04]} Ne7 {[%emt 0:01:19]} 17. Ne4 {[%emt 0:01:13]} Bb4 {[%emt 0:04:04]} 18. Nf2 {[%emt 0:10:14]} O-O {[%emt 0:01:10]} 19. Bxd3 {[%emt 0:05:34]} cxd3 {[%emt 0:00:05]} 20. Be3 {[%emt 0:00:08]} d2 {[%emt 0:04:13]} 21. Ke4 {[%emt 0:04:43]} Nd5 {[%emt 0:01:12]} 22. Nd3 {[%emt 0:00:40]} Ba5 {[%emt 0:01:49]} 23. Rhd1 {[%emt 0:03:14]} Nf6+ {[%emt 0:01:12]} 24. exf6 {[%emt 0:00:12]} Rfe8+ {[%emt 0:00:00]} 25. Ne5 {[%emt 0:00:36]} gxf6 {[%emt 0:00:03]} 26. Ra3 {[%emt 0:03:35]} fxe5 {[%emt 0:00:21]} 27. fxe5 {[%emt 0:00:02]} Rd5 {[%emt 0:00:29]} 28. Bf4 {[%emt 0:00:27]} Bc7 {[%emt 0:00:31]} 29. Rxd2 {[%emt 0:01:29]} Rxd2 {[%emt 0:01:42]} 30. Bxd2 {[%emt 0:00:01]} Rxe5+ {[%emt 0:00:22]} 31. Kd3 {[%emt 0:01:21]} h5 {[%emt 0:00:29]} 32. Rb3 {[%emt 0:00:18]} Rd5+ {[%emt 0:00:42]} 33. Ke2 {[%emt 0:00:05]} b5 {[%emt 0:00:20]} 34. axb5 {[%emt 0:00:35]} Rxb5 {[%emt 0:00:08]} 35. Rxb5 {[%emt 0:00:57]} cxb5 {[%emt 0:00:01]} 36. h3 {[%emt 0:00:28]} Kf7 {[%emt 0:00:11]} 37. Kd3 {[%emt 0:00:10]} Ke6 {[%emt 0:00:18]} 38. Ke4 {[%emt 0:00:07]} a5 {[%emt 0:00:20]} 39. g4 {[%emt 0:00:45]} hxg4 {[%emt 0:00:06]} 40. hxg4 {[%emt 0:00:03]} Be5 {[%emt 0:00:29]} 41. Bxa5 {[%emt 0:30:10]} Bxb2 {[%emt 0:30:03]} 42. Bb4 {[%emt 0:00:07]} 1/2-1/2

[Event "FIDE World Junior U20-ch Girls 2025"]
[Site "Petrovac"]
[Date "2025.02.28"]
[Round "4.19"]
[White "Rakshitta Ravi"]
[Black "Sneha Halder"]
[Result "1-0"]
[Annotator "ChessBase"]
[ECO "C11"]
[WhiteElo "2365"]
[BlackElo "2065"]
[PlyCount "73"]
[EventDate "2025.02.23"]
[EventType "swiss"]
[EventCountry "MNE"]
[SourceTitle "playchess.com"]
[Source "ChessBase"]
[SourceQuality "1"]
[TimeControl "40/5400+30:1800+30"]

1. e4 {[%emt 0:01:32]} e6 {[%emt 0:03:09]} 2. d4 {[%emt 0:00:04]} d5 {[%emt 0:00:06]} 3. Nc3 {[%emt 0:00:03]} Nf6 {[%emt 0:00:27]} 4. Bd3 {[%emt 0:00:36]} Bb4 {[%emt 0:02:07]} 5. e5 {[%emt 0:00:15]} Nfd7 {[%emt 0:00:55]} 6. Qg4 {[%emt 0:00:04]} g6 {[%emt 0:01:46]} 7. Bg5 {[%emt 0:04:08]} Be7 {[%emt 0:00:05]} 8. h4 {[%emt 0:00:47]} h6 {[%emt 0:01:51]} 9. Bxe7 {[%emt 0:01:41]} Qxe7 {[%emt 0:00:03]} 10. h5 {[%emt 0:04:16]} g5 {[%emt 0:02:09]} 11. f4 {[%emt 0:01:55]} a6 {[%emt 0:11:51]} 12. fxg5 {[%emt 0:21:35]} Qxg5 {[%emt 0:09:32]} 13. Qxg5 {[%emt 0:04:31]} hxg5 {[%emt 0:00:02]} 14. Nce2 {[%emt 0:00:15]} c5 {[%emt 0:01:01]} 15. c3 {[%emt 0:00:02]} Nc6 {[%emt 0:00:41]} 16. Nf3 {[%emt 0:04:34]} cxd4 {[%emt 0:09:31]} 17. cxd4 {[%emt 0:02:16]} g4 {[%emt 0:01:32]} 18. Nd2 {[%emt 0:11:19]} f6 {[%emt 0:12:33]} 19. exf6 {[%emt 0:00:04]} Nxf6 {[%emt 0:00:02]} 20. O-O-O {[%emt 0:12:34]} Bd7 {[%emt 0:03:30]} 21. Rde1 {[%emt 0:04:02]} Rc8 {[%emt 0:02:22]} 22. Kb1 {[%emt 0:00:06]} Ke7 {[%emt 0:02:15]} 23. Nf4 {[%emt 0:01:32]} Kd6 {[%emt 0:06:28]} 24. Nb3 {[%emt 0:00:07]} e5 {[%emt 0:07:29]} 25. Ng6 {[%emt 0:02:02]} Rhe8 {[%emt 0:00:48]} 26. Ref1 {[%emt 0:04:30]} Ne4 {[%emt 0:00:06]} 27. Bxe4 {[%emt 0:05:25]} dxe4 {[%emt 0:00:02]} 28. d5 {[%emt 0:00:49]} Kxd5 {[%emt 0:08:52]} 29. h6 {[%emt 0:00:04]} Nb4 {[%emt 0:02:27]} 30. Rd1+ {[%emt 0:07:09]} Ke6 {[%emt 0:02:57]} 31. h7 {[%emt 0:02:58]} Bb5 {[%emt 0:00:21]} 32. a3 {[%emt 0:01:09]} Bd3+ {[%emt 0:01:38]} 33. Ka1 {[%emt 0:00:49]} Nc2+ {[%emt 0:01:21]} 34. Ka2 {[%emt 0:00:04]} Bc4 {[%emt 0:04:01]} 35. Rh6 {[%emt 0:00:08]} Kf5 {[%emt 0:00:16]} 36. Rd6 {[%emt 0:01:30]} Nd4 {[%emt 0:01:23]} 37. Rh5# {[%emt 0:00:08]} 1-0

[Event "FIDE World Junior U20-ch Girls 2025"]
[Site "Petrovac"]
[Date "2025.02.28"]
[Round "4.20"]
[White "Khamdamova, Afruza"]
[Black "Shohradova, Lala"]
[Result "1-0"]
[Annotator "ChessBase"]
[ECO "C16"]
[WhiteElo "2354"]
[BlackElo "2025"]
[PlyCount "111"]
[EventDate "2025.02.23"]
[EventType "swiss"]
[EventCountry "MNE"]
[SourceTitle "playchess.com"]
[Source "ChessBase"]
[SourceQuality "1"]
[TimeControl "40/5400+30:1800+30"]

1. e4 {[%emt 0:00:44]} e6 {[%emt 0:00:42]} 2. d4 {[%emt 0:00:05]} d5 {[%emt 0:00:04]} 3. Nc3 {[%emt 0:00:30]} Bb4 {[%emt 0:00:32]} 4. e5 {[%emt 0:00:05]} Ne7 {[%emt 0:04:45]} 5. a3 {[%emt 0:00:34]} Bxc3+ {[%emt 0:00:04]} 6. bxc3 {[%emt 0:00:04]} b6 {[%emt 0:01:22]} 7. Qg4 {[%emt 0:00:05]} Ng6 {[%emt 0:00:23]} 8. h4 {[%emt 0:00:12]} h5 {[%emt 0:00:24]} 9. Qg3 {[%emt 0:00:04]} Ba6 {[%emt 0:00:07]} 10. Bxa6 Nxa6 {[%emt 0:00:01]} 11. Bg5 {[%emt 0:00:10]} Qd7 {[%emt 0:01:15]} 12. Ne2 {[%emt 0:00:06]} Qa4 {[%emt 0:03:15]} 13. Qd3 {[%emt 0:21:32]} c5 {[%emt 0:02:57]} 14. O-O {[%emt 0:01:17]} Rc8 {[%emt 0:01:46]} 15. f4 {[%emt 0:06:32]} Nc7 {[%emt 0:30:42]} 16. f5 {[%emt 0:10:36]} exf5 {[%emt 0:02:07]} 17. Qxf5 {[%emt 0:09:02]} O-O {[%emt 0:00:12]} 18. g4 {[%emt 0:00:02]} Qc4 {[%emt 0:21:45]} 19. Rf2 {[%emt 0:01:52]} cxd4 {[%emt 0:00:24]} 20. cxd4 {[%emt 0:05:04]} Nb5 {[%emt 0:05:45]} 21. e6 {[%emt 0:06:08]} Nh8 {[%emt 0:19:18]} 22. Be7 {[%emt 0:18:42]} Nxd4 {[%emt 0:00:24]} 23. Nxd4 {[%emt 0:00:03]} Qxd4 {[%emt 0:00:02]} 24. Raf1 {[%emt 0:00:21]} hxg4 {[%emt 0:02:31]} 25. Bxf8 {[%emt 0:01:16]} Rxf8 {[%emt 0:01:02]} 26. Kg2 {[%emt 0:01:20]} g6 {[%emt 0:01:02]} 27. exf7+ {[%emt 0:03:04]} Rxf7 {[%emt 0:00:04]} 28. Qe6 {[%emt 0:01:15]} Qe4+ {[%emt 0:00:54]} 29. Qxe4 {[%emt 0:00:04]} dxe4 {[%emt 0:00:01]} 30. Rxf7 {[%emt 0:00:54]} Nxf7 {[%emt 0:00:01]} 31. Rf6 {[%emt 0:03:19]} Kg7 {[%emt 0:01:19]} 32. Re6 {[%emt 0:00:12]} Nh6 {[%emt 0:00:01]} 33. Rxe4 {[%emt 0:03:53]} Nf5 {[%emt 0:00:01]} 34. Kf2 {[%emt 0:02:20]} g3+ {[%emt 0:00:16]} 35. Kf3 {[%emt 0:00:15]} Kf6 {[%emt 0:00:12]} 36. c3 {[%emt 0:00:26]} Kg7 {[%emt 0:00:56]} 37. Kg2 {[%emt 0:01:46]} Kh6 {[%emt 0:00:24]} 38. Kh3 {[%emt 0:00:22]} Kg7 {[%emt 0:00:11]} 39. Ra4 {[%emt 0:01:20]} a5 {[%emt 0:00:12]} 40. Re4 {[%emt 0:00:31]} Kf6 {[%emt 0:00:28]} 41. a4 {[%emt 0:30:45]} Nd6 {[%emt 0:16:50]} 42. Rg4 {[%emt 0:00:00]} Kf5 {[%emt 0:05:39]} 43. Rg5+ {[%emt 0:00:00]} Kf6 {[%emt 0:00:19]} 44. Rxg3 {[%emt 0:00:00]} Ne4 {[%emt 0:06:33]} 45. Rf3+ {[%emt 0:00:00]} Kg7 {[%emt 0:01:38]} 46. Kg4 {[%emt 0:00:00]} Kh6 {[%emt 0:00:05]} 47. c4 {[%emt 0:00:00]} Nc5 {[%emt 0:00:58]} 48. Rf6 {[%emt 0:00:00]} Nxa4 {[%emt 0:00:11]} 49. h5 {[%emt 0:00:00]} Nb2 {[%emt 0:00:29]} 50. Rxg6+ {[%emt 0:00:00]} Kh7 {[%emt 0:00:04]} 51. Rc6 {[%emt 0:00:00]} Nd3 {[%emt 0:01:27]} 52. Kg5 {[%emt 0:00:00]} Ne5 {[%emt 0:00:20]} 53. Rc7+ {[%emt 0:00:00]} Kg8 {[%emt 0:00:01]} 54. Kf6 {[%emt 0:00:00]} Ng4+ {[%emt 0:00:10]} 55. Kf5 {[%emt 0:00:00]} Ne3+ {[%emt 0:01:29]} 56. Kg6 {[%emt 0:00:00]} 1-0

[Event "FIDE World Junior U20-ch Girls 2025"]
[Site "Petrovac"]
[Date "2025.02.28"]
[Round "4.21"]
[White "Orian, Noga"]
[Black "Vujatovic, Irina"]
[Result "1-0"]
[Annotator "ChessBase"]
[ECO "D35"]
[WhiteElo "2210"]
[BlackElo "2042"]
[PlyCount "101"]
[EventDate "2025.02.23"]
[EventType "swiss"]
[EventCountry "MNE"]
[SourceTitle "playchess.com"]
[Source "ChessBase"]
[SourceQuality "1"]
[TimeControl "40/5400+30:1800+30"]

1. d4 {[%emt 0:00:03]} d5 {[%emt 0:00:07]} 2. c4 {[%emt 0:00:15]} e6 {[%emt 0:00:07]} 3. Nc3 {[%emt 0:00:23]} Nf6 {[%emt 0:00:08]} 4. cxd5 {[%emt 0:00:08]} exd5 {[%emt 0:00:05]} 5. Bg5 {[%emt 0:00:06]} Nbd7 {[%emt 0:00:03]} 6. e3 {[%emt 0:00:17]} h6 {[%emt 0:00:07]} 7. Bh4 {[%emt 0:00:42]} Be7 {[%emt 0:00:10]} 8. Bd3 {[%emt 0:00:42]} O-O {[%emt 0:00:09]} 9. Qc2 {[%emt 0:01:14]} c6 {[%emt 0:00:13]} 10. Nge2 {[%emt 0:02:07]} Re8 {[%emt 0:01:11]} 11. O-O {[%emt 0:00:17]} a5 {[%emt 0:00:07]} 12. f3 {[%emt 0:02:03]} b5 {[%emt 0:00:05]} 13. a3 {[%emt 0:03:40]} Ba6 {[%emt 0:01:14]} 14. Bf2 {[%emt 0:01:56]} Qb6 {[%emt 0:02:44]} 15. Rac1 {[%emt 0:06:41]} b4 {[%emt 0:04:50]} 16. Na4 {[%emt 0:01:51]} Bxd3 {[%emt 0:04:06]} 17. Nxb6 {[%emt 0:08:58]} Bxc2 {[%emt 0:00:11]} 18. Nxa8 {[%emt 0:00:04]} Bd3 {[%emt 0:00:22]} 19. Nc7 {[%emt 0:00:02]} Rc8 {[%emt 0:00:46]} 20. Nf4 {[%emt 0:02:17]} Bxf1 {[%emt 0:04:27]} 21. Ncxd5 {[%emt 0:00:14]} Nxd5 {[%emt 0:00:55]} 22. Nxd5 {[%emt 0:00:01]} Bd6 {[%emt 0:02:21]} 23. Kxf1 {[%emt 0:00:25]} bxa3 {[%emt 0:00:14]} 24. bxa3 {[%emt 0:00:11]} Bxa3 {[%emt 0:00:51]} 25. Rc4 {[%emt 0:02:51]} Kh7 {[%emt 0:10:55]} 26. Be1 {[%emt 0:01:41]} Bd6 {[%emt 0:00:29]} 27. Bxa5 {[%emt 0:15:20]} Ra8 {[%emt 0:02:59]} 28. Rxc6 {[%emt 0:00:42]} Bxh2 {[%emt 0:01:04]} 29. Bc7 {[%emt 0:07:23]} Ra1+ {[%emt 0:00:21]} 30. Ke2 {[%emt 0:00:05]} Ra2+ {[%emt 0:02:44]} 31. Kd3 {[%emt 0:00:01]} Rxg2 {[%emt 0:05:18]} 32. Bxh2 {[%emt 0:00:26]} Rxh2 {[%emt 0:00:10]} 33. Rc7 {[%emt 0:00:20]} Nf8 {[%emt 0:00:19]} 34. Rxf7 {[%emt 0:00:55]} Ne6 {[%emt 0:00:14]} 35. f4 {[%emt 0:03:47]} h5 {[%emt 0:05:21]} 36. Re7 {[%emt 0:01:36]} Nf8 {[%emt 0:01:12]} 37. f5 {[%emt 0:09:09]} Kh6 {[%emt 0:05:03]} 38. Ke4 {[%emt 0:07:52]} h4 {[%emt 0:10:42]} 39. Kf3 {[%emt 0:02:20]} h3 {[%emt 0:06:07]} 40. Kg3 {[%emt 0:08:24]} Rh1 {[%emt 0:01:23]} 41. Nf4 {[%emt 0:31:25]} Nh7 {[%emt 0:32:38]} 42. Nxh3 {[%emt 0:04:09]} Nf6 {[%emt 0:00:29]} 43. Nf2 {[%emt 0:01:02]} Rg1+ {[%emt 0:00:09]} 44. Kf3 {[%emt 0:00:19]} Kh5 {[%emt 0:08:11]} 45. e4 {[%emt 0:02:02]} Kh4 {[%emt 0:00:48]} 46. d5 {[%emt 0:01:38]} Rg3+ {[%emt 0:06:12]} 47. Ke2 {[%emt 0:00:02]} Rg2 {[%emt 0:00:23]} 48. d6 {[%emt 0:02:21]} g5 {[%emt 0:01:10]} 49. d7 {[%emt 0:02:14]} Nxd7 {[%emt 0:00:10]} 50. Rxd7 {[%emt 0:00:03]} Kg3 {[%emt 0:00:15]} 51. Rd3+ {[%emt 0:00:04]} 1-0

[Event "FIDE World Junior U20-ch Girls 2025"]
[Site "Petrovac"]
[Date "2025.02.28"]
[Round "4.22"]
[White "Mrittika Mallick"]
[Black "Peglau, Charis"]
[Result "1/2-1/2"]
[Annotator "ChessBase"]
[ECO "B00"]
[WhiteElo "2058"]
[BlackElo "2203"]
[PlyCount "101"]
[EventDate "2025.02.23"]
[EventType "swiss"]
[EventCountry "MNE"]
[SourceTitle "playchess.com"]
[Source "ChessBase"]
[SourceQuality "1"]
[TimeControl "40/5400+30:1800+30"]

1. e4 {[%emt 0:00:03]} d6 {[%emt 0:00:07]} 2. d4 {[%emt 0:00:12]} g6 {[%emt 0:00:08]} 3. Nc3 {[%emt 0:00:21]} a6 {[%emt 0:00:16]} 4. a4 {[%emt 0:00:37]} Bg7 {[%emt 0:00:23]} 5. Bf4 {[%emt 0:01:09]} Nc6 {[%emt 0:06:10]} 6. Nge2 {[%emt 0:04:00]} e5 {[%emt 0:02:14]} 7. dxe5 {[%emt 0:04:33]} Nxe5 {[%emt 0:00:11]} 8. Nd4 {[%emt 0:01:21]} Bd7 {[%emt 0:10:31]} 9. Be2 {[%emt 0:04:27]} Ne7 {[%emt 0:03:42]} 10. O-O {[%emt 0:09:29]} O-O {[%emt 0:04:07]} 11. Qd2 {[%emt 0:02:20]} N7c6 {[%emt 0:06:18]} 12. Nb3 {[%emt 0:04:18]} Be6 {[%emt 0:09:54]} 13. Nd5 {[%emt 0:02:02]} Bxd5 {[%emt 0:01:16]} 14. Qxd5 {[%emt 0:03:13]} Nd7 {[%emt 0:03:21]} 15. c3 {[%emt 0:05:11]} Nf6 {[%emt 0:01:34]} 16. Qd3 {[%emt 0:00:28]} Re8 {[%emt 0:01:12]} 17. Bf3 {[%emt 0:06:49]} Ne5 {[%emt 0:04:02]} 18. Bxe5 {[%emt 0:00:16]} Rxe5 {[%emt 0:00:09]} 19. Nd2 {[%emt 0:02:52]} b5 {[%emt 0:06:11]} 20. axb5 {[%emt 0:03:13]} axb5 {[%emt 0:00:10]} 21. g3 {[%emt 0:00:16]} Nd7 {[%emt 0:01:46]} 22. Bh1 {[%emt 0:04:34]} Rxa1 {[%emt 0:10:55]} 23. Rxa1 {[%emt 0:00:07]} b4 {[%emt 0:00:28]} 24. cxb4 {[%emt 0:02:10]} Re8 {[%emt 0:00:45]} 25. Nc4 {[%emt 0:06:33]} Ne5 {[%emt 0:02:15]} 26. Nxe5 {[%emt 0:00:31]} Bxe5 {[%emt 0:00:06]} 27. f4 {[%emt 0:09:30]} Bxb2 {[%emt 0:01:20]} 28. Ra6 {[%emt 0:03:24]} Qe7 {[%emt 0:10:12]} 29. Bf3 {[%emt 0:05:44]} Rb8 {[%emt 0:01:50]} 30. b5 {[%emt 0:01:25]} Qe8 {[%emt 0:03:07]} 31. Be2 {[%emt 0:00:33]} Bg7 {[%emt 0:08:07]} 32. Kg2 {[%emt 0:01:59]} Qe7 {[%emt 0:00:35]} 33. Qd5 {[%emt 0:01:01]} Kh8 {[%emt 0:01:13]} 34. Bc4 {[%emt 0:01:25]} h5 {[%emt 0:00:46]} 35. h4 {[%emt 0:02:11]} Kh7 {[%emt 0:00:07]} 36. Kf3 {[%emt 0:01:42]} Re8 {[%emt 0:00:19]} 37. Bd3 {[%emt 0:01:43]} Qd7 {[%emt 0:01:16]} 38. Kg2 {[%emt 0:02:00]} Re7 {[%emt 0:00:23]} 39. Ra7 {[%emt 0:00:58]} Qe8 {[%emt 0:01:05]} 40. Qc4 {[%emt 0:00:43]} Qb8 {[%emt 0:00:14]} 41. Ra6 {[%emt 0:32:16]} Qb7 {[%emt 0:02:09]} 42. Rc6 {[%emt 0:00:00]} Qa7 {[%emt 0:02:20]} 43. e5 {[%emt 0:00:00]} Qe3 {[%emt 0:12:01]} 44. Qe4 {[%emt 0:00:00]} Qxe4+ {[%emt 0:02:29]} 45. Bxe4 {[%emt 0:00:00]} dxe5 {[%emt 0:00:32]} 46. f5 {[%emt 0:00:00]} gxf5 {[%emt 0:00:58]} 47. Bxf5+ {[%emt 0:00:00]} Kg8 {[%emt 0:00:10]} 48. Kf3 {[%emt 0:00:00]} e4+ {[%emt 0:03:19]} 49. Bxe4 {[%emt 0:00:00]} Bd4 {[%emt 0:00:28]} 50. Kf4 {[%emt 0:00:00]} Kg7 {[%emt 0:08:41]} 51. Kf3 {[%emt 0:00:00]} 1/2-1/2

[Event "FIDE World Junior U20-ch Girls 2025"]
[Site "Petrovac"]
[Date "2025.02.28"]
[Round "4.23"]
[White "Trifoi, Mihaela-Ioana"]
[Black "Karacsonyi, Kata"]
[Result "1/2-1/2"]
[Annotator "ChessBase"]
[ECO "B22"]
[WhiteElo "1990"]
[BlackElo "2191"]
[PlyCount "89"]
[EventDate "2025.02.23"]
[EventType "swiss"]
[EventCountry "MNE"]
[SourceTitle "playchess.com"]
[Source "ChessBase"]
[SourceQuality "1"]
[TimeControl "40/5400+30:1800+30"]

1. e4 {[%emt 0:00:05]} c5 {[%emt 0:00:07]} 2. c3 {[%emt 0:00:12]} d5 {[%emt 0:00:13]} 3. exd5 {[%emt 0:00:20]} Qxd5 {[%emt 0:00:05]} 4. d4 {[%emt 0:00:07]} Nc6 {[%emt 0:00:17]} 5. Nf3 {[%emt 0:00:32]} Bg4 {[%emt 0:00:14]} 6. Bb5 {[%emt 0:04:29]} cxd4 {[%emt 0:04:08]} 7. Bxc6+ {[%emt 0:27:41]} Qxc6 {[%emt 0:04:51]} 8. cxd4 {[%emt 0:01:32]} Bxf3 {[%emt 0:01:22]} 9. gxf3 {[%emt 0:00:07]} e6 {[%emt 0:02:15]} 10. O-O {[%emt 0:01:39]} Bd6 {[%emt 0:02:52]} 11. Nc3 {[%emt 0:01:04]} Ne7 {[%emt 0:08:54]} 12. Qa4 {[%emt 0:01:17]} Qxa4 {[%emt 0:02:15]} 13. Nxa4 {[%emt 0:00:06]} Nf5 {[%emt 0:01:03]} 14. Be3 {[%emt 0:04:05]} Nh4 {[%emt 0:04:31]} 15. f4 {[%emt 0:00:26]} Ng6 {[%emt 0:11:15]} 16. Nc5 {[%emt 0:01:06]} Bxf4 {[%emt 0:01:35]} 17. Nxb7 {[%emt 0:00:21]} Rb8 {[%emt 0:01:13]} 18. Nc5 {[%emt 0:05:53]} Bxe3 {[%emt 0:24:28]} 19. fxe3 {[%emt 0:00:14]} Rxb2 {[%emt 0:00:14]} 20. Rab1 {[%emt 0:07:32]} Rb6 {[%emt 0:00:26]} 21. a4 {[%emt 0:02:54]} Ke7 {[%emt 0:04:23]} 22. a5 {[%emt 0:00:49]} Rbb8 {[%emt 0:00:46]} 23. Na6 {[%emt 0:01:52]} Rxb1 {[%emt 0:03:08]} 24. Rxb1 {[%emt 0:00:04]} Rd8 {[%emt 0:04:32]} 25. Nc5 {[%emt 0:00:45]} a6 {[%emt 0:05:48]} 26. Rb6 {[%emt 0:03:40]} Ra8 {[%emt 0:02:03]} 27. Kf2 {[%emt 0:15:47]} Kd8 {[%emt 0:02:31]} 28. Rxa6 {[%emt 0:10:37]} Rxa6 {[%emt 0:00:06]} 29. Nxa6 {[%emt 0:00:05]} Ne7 {[%emt 0:01:24]} 30. Nc5 {[%emt 0:00:44]} Kc7 {[%emt 0:02:01]} 31. Ke2 {[%emt 0:01:12]} Nc6 {[%emt 0:02:18]} 32. Nb3 {[%emt 0:01:54]} g5 {[%emt 0:00:29]} 33. a6 {[%emt 0:03:23]} Kb6 {[%emt 0:00:34]} 34. Nc5 {[%emt 0:00:28]} Nb4 {[%emt 0:02:20]} 35. Ne4 {[%emt 0:00:10]} h6 {[%emt 0:00:58]} 36. Nd6 {[%emt 0:00:05]} f6 {[%emt 0:00:47]} 37. Ne8 {[%emt 0:00:19]} Nd5 {[%emt 0:01:17]} 38. e4 {[%emt 0:00:33]} Nf4+ {[%emt 0:00:15]} 39. Kf3 {[%emt 0:00:35]} f5 {[%emt 0:01:00]} 40. exf5 {[%emt 0:01:11]} exf5 {[%emt 0:00:16]} 41. Ng7 {[%emt 0:30:35]} Kxa6 {[%emt 0:04:29]} 42. Nxf5 {[%emt 0:00:00]} h5 {[%emt 0:04:16]} 43. Ng7 {[%emt 0:00:00]} Kb5 {[%emt 0:06:04]} 44. Nxh5 {[%emt 0:00:00]} Nxh5 {[%emt 0:00:34]} 45. Ke4 {[%emt 0:00:00]} 1/2-1/2

[Event "FIDE World Junior U20-ch Girls 2025"]
[Site "Petrovac"]
[Date "2025.02.28"]
[Round "4.24"]
[White "Abdinova, Narmin"]
[Black "Liuviann, Cecilia Natalie"]
[Result "1/2-1/2"]
[Annotator "ChessBase"]
[ECO "D71"]
[WhiteElo "2186"]
[BlackElo "1964"]
[PlyCount "119"]
[EventDate "2025.02.23"]
[EventType "swiss"]
[EventCountry "MNE"]
[SourceTitle "playchess.com"]
[Source "ChessBase"]
[SourceQuality "1"]
[TimeControl "40/5400+30:1800+30"]

1. d4 {[%emt 0:00:16]} Nf6 {[%emt 0:00:08]} 2. c4 {[%emt 0:00:04]} g6 {[%emt 0:00:23]} 3. g3 {[%emt 0:00:16]} Bg7 {[%emt 0:00:13]} 4. Bg2 {[%emt 0:00:05]} d5 {[%emt 0:00:04]} 5. cxd5 {[%emt 0:00:21]} Nxd5 {[%emt 0:00:08]} 6. e4 {[%emt 0:00:28]} Nb6 {[%emt 0:00:09]} 7. Ne2 {[%emt 0:01:26]} O-O {[%emt 0:00:33]} 8. O-O {[%emt 0:02:49]} Nc6 {[%emt 0:02:08]} 9. d5 {[%emt 0:00:20]} Na5 {[%emt 0:02:08]} 10. Nbc3 {[%emt 0:00:02]} e6 {[%emt 0:04:41]} 11. h3 {[%emt 0:04:02]} exd5 {[%emt 0:08:37]} 12. exd5 {[%emt 0:00:11]} c6 {[%emt 0:00:46]} 13. b4 {[%emt 0:28:06]} Nac4 {[%emt 0:00:20]} 14. dxc6 {[%emt 0:00:16]} bxc6 {[%emt 0:00:34]} 15. Qxd8 {[%emt 0:00:26]} Rxd8 {[%emt 0:00:05]} 16. Bg5 {[%emt 0:00:05]} f6 {[%emt 0:15:29]} 17. Bf4 {[%emt 0:01:15]} Bd7 {[%emt 0:02:30]} 18. Rfd1 {[%emt 0:07:51]} Rac8 {[%emt 0:00:39]} 19. Rac1 {[%emt 0:07:33]} g5 {[%emt 0:09:45]} 20. Be3 {[%emt 0:01:04]} Nxe3 {[%emt 0:06:52]} 21. fxe3 {[%emt 0:00:04]} Nc4 {[%emt 0:00:45]} 22. Kf2 {[%emt 0:00:55]} Ne5 {[%emt 0:06:36]} 23. Ne4 {[%emt 0:03:19]} Rb8 {[%emt 0:04:41]} 24. a3 {[%emt 0:04:12]} Be6 {[%emt 0:04:12]} 25. Nd4 {[%emt 0:02:48]} Bd5 {[%emt 0:01:12]} 26. Nf5 {[%emt 0:06:28]} Bxe4 {[%emt 0:07:16]} 27. Bxe4 {[%emt 0:00:06]} Rxd1 {[%emt 0:01:06]} 28. Rxd1 {[%emt 0:00:02]} Bf8 {[%emt 0:00:09]} 29. Rc1 {[%emt 0:02:19]} a5 {[%emt 0:03:04]} 30. bxa5 {[%emt 0:00:33]} Ra8 {[%emt 0:00:54]} 31. Rb1 {[%emt 0:11:58]} Rxa5 {[%emt 0:05:16]} 32. Rb8 {[%emt 0:00:11]} Rxa3 {[%emt 0:00:37]} 33. Nh6+ {[%emt 0:01:53]} Kh8 {[%emt 0:01:31]} 34. Nf5 {[%emt 0:08:27]} Kg8 {[%emt 0:00:58]} 35. Nd4 {[%emt 0:00:13]} Kf7 {[%emt 0:09:42]} 36. Rb7+ {[%emt 0:00:52]} Ke8 {[%emt 0:00:07]} 37. Ne6 {[%emt 0:03:50]} Be7 {[%emt 0:02:11]} 38. Bxh7 {[%emt 0:01:34]} Ra2+ {[%emt 0:01:47]} 39. Kf1 {[%emt 0:00:09]} c5 {[%emt 0:00:27]} 40. Nc7+ {[%emt 0:01:54]} Kd8 {[%emt 0:00:46]} 41. Nd5 {[%emt 0:30:49]} Bd6 {[%emt 0:30:49]} 42. Bf5 {[%emt 0:00:00]} c4 {[%emt 0:00:00]} 43. Rh7 {[%emt 0:00:00]} Ke8 {[%emt 0:00:00]} 44. Nxf6+ {[%emt 0:00:00]} Kf8 {[%emt 0:00:00]} 45. Ne4 {[%emt 0:00:00]} Be7 {[%emt 0:00:00]} 46. Rh8+ {[%emt 0:00:00]} Kf7 {[%emt 0:00:00]} 47. Rc8 {[%emt 0:00:00]} Ra3 {[%emt 0:00:00]} 48. Ke2 {[%emt 0:00:00]} Ra2+ {[%emt 0:00:00]} 49. Kd1 {[%emt 0:00:00]} Ra3 {[%emt 0:00:00]} 50. Kd2 {[%emt 0:00:00]} Bb4+ {[%emt 0:00:00]} 51. Ke2 {[%emt 0:00:00]} Ra2+ {[%emt 0:00:00]} 52. Kd1 {[%emt 0:00:00]} Nd3 {[%emt 0:00:00]} 53. Rc7+ {[%emt 0:00:09]} Kf8 {[%emt 0:00:00]} 54. Rc8+ {[%emt 0:02:37]} Ke7 {[%emt 0:00:00]} 55. Rc7+ {[%emt 0:00:01]} Kf8 {[%emt 0:00:00]} 56. Rc8+ {[%emt 0:05:08]} Ke7 {[%emt 0:00:00]} 57. Rc7+ {[%emt 0:00:50]} Kf8 {[%emt 0:00:12]} 58. h4 {[%emt 0:01:13]} gxh4 {[%emt 0:00:30]} 59. gxh4 {[%emt 0:00:00]} Rh2 {[%emt 0:00:30]} 60. Be6 {[%emt 0:00:25]} 1/2-1/2